[Event "*** Titled Tuesday Blitz"]
[Site "Chess.com"]
[Date "2020.11.10"]
[Round "2"]
[White "VerdeNotte"]
[Black "KaterinaMiroshnik"]
[Result "1-0"]
[WhiteElo "2874"]
[BlackElo "2562"]
[TimeControl "180+1"]
[EndTime "10:20:54 PST"]
[Termination "VerdeNotte won by resignation"]

1. c4 {[%clk 0:03:00.9]} 1... e6 {[%clk 0:02:59.7]} 2. g3 {[%clk 0:03:01]} 2...
Nf6 {[%clk 0:03:00.6]} 3. Bg2 {[%clk 0:03:01.2]} 3... d5 {[%clk 0:03:00.3]} 4.
Nf3 {[%clk 0:03:01.5]} 4... Be7 {[%clk 0:02:57.2]} 5. O-O {[%clk 0:03:01.4]}
5... O-O {[%clk 0:02:57.7]} 6. b3 {[%clk 0:03:01.7]} 6... c6 {[%clk 0:02:57.8]}
7. Bb2 {[%clk 0:03:01.6]} 7... Nbd7 {[%clk 0:02:58.3]} 8. Nc3 {[%clk 0:03:00.7]}
8... b6 {[%clk 0:02:58.5]} 9. cxd5 {[%clk 0:02:51.3]} 9... exd5 {[%clk
0:02:57.1]} 10. Nd4 {[%clk 0:02:51]} 10... Bb7 {[%clk 0:02:56.1]} 11. Nf5 {[%clk
0:02:51.3]} 11... Nc5 {[%clk 0:02:48]} 12. d4 {[%clk 0:02:40.6]} 12... Nce4
{[%clk 0:02:38.1]} 13. Nxe4 {[%clk 0:02:39]} 13... Nxe4 {[%clk 0:02:37.8]} 14.
Qc2 {[%clk 0:02:34.9]} 14... Nd6 {[%clk 0:02:30.4]} 15. Nxe7+ {[%clk 0:02:34.5]}
15... Qxe7 {[%clk 0:02:31.3]} 16. a4 {[%clk 0:02:34]} 16... a5 {[%clk
0:02:29.8]} 17. Ba3 {[%clk 0:02:33.5]} 17... Qe6 {[%clk 0:02:29.3]} 18. Rac1
{[%clk 0:02:29.6]} 18... Rfe8 {[%clk 0:02:27.6]} 19. e3 {[%clk 0:02:29.4]} 19...
Ne4 {[%clk 0:02:20.4]} 20. Rfe1 {[%clk 0:02:27.5]} 20... h5 {[%clk 0:02:18.7]}
21. f3 {[%clk 0:02:25]} 21... Nf6 {[%clk 0:02:17]} 22. e4 {[%clk 0:02:24.2]}
22... dxe4 {[%clk 0:02:13.6]} 23. fxe4 {[%clk 0:02:24.9]} 23... Rad8 {[%clk
0:02:07.6]} 24. Bb2 {[%clk 0:02:14.3]} 24... Qg4 {[%clk 0:02:03.1]} 25. e5
{[%clk 0:02:07.6]} 25... Nd5 {[%clk 0:01:57.9]} 26. Qe4 {[%clk 0:02:04.6]} 26...
Qe6 {[%clk 0:01:51.8]} 27. Qh4 {[%clk 0:01:58.4]} 27... c5 {[%clk 0:01:45.1]}
28. dxc5 {[%clk 0:01:56.7]} 28... bxc5 {[%clk 0:01:46]} 29. Rxc5 {[%clk
0:01:53.8]} 29... Nb4 {[%clk 0:01:43.9]} 30. Bxb7 {[%clk 0:01:40.3]} 30... Qb6
{[%clk 0:01:42.3]} 31. Bd4 {[%clk 0:01:36.8]} 31... Qxb7 {[%clk 0:01:34.4]} 32.
Qe4 {[%clk 0:01:36.6]} 32... Qd7 {[%clk 0:01:27.2]} 33. Rc4 {[%clk 0:01:30.7]}
33... Qe6 {[%clk 0:01:18.4]} 34. Rf1 {[%clk 0:01:23.2]} 34... Rd5 {[%clk
0:01:17.2]} 35. Qf3 {[%clk 0:01:08.1]} 35... Red8 {[%clk 0:01:12.6]} 36. Bc3
{[%clk 0:01:04]} 36... Rd3 {[%clk 0:01:01.6]} 37. Qxh5 {[%clk 0:01:02.5]} 37...
Nd5 {[%clk 0:00:54]} 38. Bxa5 {[%clk 0:00:59.5]} 38... Ra8 {[%clk 0:00:51]} 39.
Rh4 {[%clk 0:00:53.9]} 39... Qh6 {[%clk 0:00:41]} 40. Qxh6 {[%clk 0:00:50]}
40... gxh6 {[%clk 0:00:39.9]} 41. b4 {[%clk 0:00:49.2]} 41... Nc3 {[%clk
0:00:29.1]} 42. Rxh6 {[%clk 0:00:47.4]} 42... Nxa4 {[%clk 0:00:28]} 43. e6
{[%clk 0:00:47.2]} 43... fxe6 {[%clk 0:00:27.1]} 44. Rxe6 {[%clk 0:00:47.5]}
44... Nc3 {[%clk 0:00:27.1]} 45. Rg6+ {[%clk 0:00:44.3]} 45... Kh7 {[%clk
0:00:26.3]} 46. Rg4 {[%clk 0:00:44.4]} 46... Re8 {[%clk 0:00:24.5]} 47. Bc7
{[%clk 0:00:36.2]} 47... Re2 {[%clk 0:00:23.5]} 48. Rf7+ {[%clk 0:00:34.3]}
48... Kh8 {[%clk 0:00:18.2]} 49. Rf8+ {[%clk 0:00:32.7]} 49... Kh7 {[%clk
0:00:18.5]} 50. Rf7+ {[%clk 0:00:29.8]} 50... Kh8 {[%clk 0:00:18.7]} 51. Bb6
{[%clk 0:00:16.7]} 51... Rd1+ {[%clk 0:00:14.7]} 52. Rf1 {[%clk 0:00:16.7]}
52... Rd3 {[%clk 0:00:13.9]} 53. Bd4+ {[%clk 0:00:16.1]} 53... Kh7 {[%clk
0:00:13.4]} 54. Bxc3 {[%clk 0:00:15.6]} 54... Rxc3 {[%clk 0:00:12.5]} 55. Rf2
{[%clk 0:00:16]} 55... Re1+ {[%clk 0:00:12.1]} 56. Kg2 {[%clk 0:00:16.4]} 56...
Rb3 {[%clk 0:00:12.4]} 57. Kh3 {[%clk 0:00:14.4]} 1-0

[Event "*** Titled Tuesday Blitz"]
[Site "Chess.com"]
[Date "2020.11.10"]
[Round "2"]
[White "Mazanchenko_Dmitry"]
[Black "Smile2005"]
[Result "0-1"]
[WhiteElo "2097"]
[BlackElo "2390"]
[TimeControl "180+1"]
[EndTime "10:20:54 PST"]
[Termination "Smile2005 won by resignation"]

1. e4 {[%clk 0:02:59.6]} 1... d5 {[%clk 0:02:59.2]} 2. exd5 {[%clk 0:02:59]}
2... Nf6 {[%clk 0:02:59.2]} 3. c4 {[%clk 0:02:58.3]} 3... e6 {[%clk 0:02:59.2]}
4. dxe6 {[%clk 0:02:57.9]} 4... Bxe6 {[%clk 0:03:00.1]} 5. d4 {[%clk 0:02:55.2]}
5... Bb4+ {[%clk 0:03:00]} 6. Bd2 {[%clk 0:02:54.1]} 6... Bxd2+ {[%clk
0:02:59.9]} 7. Qxd2 {[%clk 0:02:53.6]} 7... Qe7 {[%clk 0:03:00.3]} 8. Qe2 {[%clk
0:02:32.4]} 8... Nc6 {[%clk 0:02:56.5]} 9. Nf3 {[%clk 0:02:32.2]} 9... O-O-O
{[%clk 0:02:56.5]} 10. d5 {[%clk 0:02:30.1]} 10... Rhe8 {[%clk 0:02:56.4]} 11.
Nc3 {[%clk 0:02:19.1]} 11... Qb4 {[%clk 0:02:55.8]} 12. O-O-O {[%clk 0:02:19]}
12... Bxd5 {[%clk 0:02:47.8]} 13. Nxd5 {[%clk 0:02:17.5]} 13... Nxd5 {[%clk
0:02:47.6]} 14. Qd2 {[%clk 0:02:08.2]} 14... Ne3 {[%clk 0:02:09.5]} 15. fxe3
{[%clk 0:01:35.5]} 15... Rxd2 {[%clk 0:02:07.7]} 16. Rxd2 {[%clk 0:01:35.7]}
16... Rxe3 {[%clk 0:02:06.8]} 17. a3 {[%clk 0:01:33]} 17... Qb3 {[%clk
0:02:03.5]} 18. Be2 {[%clk 0:01:21.9]} 18... f6 {[%clk 0:01:30.1]} 19. Rhd1
{[%clk 0:01:21.2]} 19... b6 {[%clk 0:01:29]} 20. Kb1 {[%clk 0:01:04.1]} 20...
Kb7 {[%clk 0:01:26.6]} 21. Rd3 {[%clk 0:00:56.6]} 21... Rxd3 {[%clk 0:01:23.9]}
22. Rxd3 {[%clk 0:00:56.9]} 22... Qxc4 {[%clk 0:01:23.6]} 23. Ng1 {[%clk
0:00:42]} 23... Qe4 {[%clk 0:01:16.5]} 24. Ka2 {[%clk 0:00:33.2]} 24... Qc4+
{[%clk 0:01:09.6]} 25. Rb3 {[%clk 0:00:24.4]} 25... Qe6 {[%clk 0:01:07.7]} 26.
Bf3 {[%clk 0:00:23.7]} 26... a5 {[%clk 0:01:07.3]} 27. a4 {[%clk 0:00:20.5]}
27... Qc4 {[%clk 0:01:07.1]} 28. Ka3 {[%clk 0:00:17.2]} 28... Qc5+ {[%clk
0:00:56.6]} 29. Ka2 {[%clk 0:00:16.7]} 29... Qc4 {[%clk 0:00:43.6]} 30. Ka3
{[%clk 0:00:16.4]} 30... Kb8 {[%clk 0:00:37.2]} 31. Bxc6 {[%clk 0:00:13.5]}
31... Qxc6 {[%clk 0:00:37.1]} 32. Nf3 {[%clk 0:00:13.9]} 32... Qc5+ {[%clk
0:00:33.3]} 33. Ka2 {[%clk 0:00:13.7]} 33... Qc4 {[%clk 0:00:32.2]} 34. Ka3
{[%clk 0:00:13.8]} 34... Qe2 {[%clk 0:00:31.3]} 35. Nd4 {[%clk 0:00:13.5]} 35...
Qxg2 {[%clk 0:00:31.2]} 36. Rc3 {[%clk 0:00:12.7]} 36... Qd5 {[%clk 0:00:27.6]}
37. Nb5 {[%clk 0:00:12.1]} 37... c5 {[%clk 0:00:18.6]} 38. Rb3 {[%clk
0:00:11.9]} 38... Kb7 {[%clk 0:00:17.6]} 39. Nc3 {[%clk 0:00:11.9]} 39... Qd4
{[%clk 0:00:17.1]} 40. Rb5 {[%clk 0:00:10.4]} 40... f5 {[%clk 0:00:14.4]} 41.
Kb3 {[%clk 0:00:10.4]} 41... f4 {[%clk 0:00:14.1]} 42. Kc2 {[%clk 0:00:10.4]}
42... f3 {[%clk 0:00:14.2]} 43. Nd1 {[%clk 0:00:09.8]} 43... f2 {[%clk
0:00:13.8]} 44. Nxf2 {[%clk 0:00:10]} 44... Qxf2+ {[%clk 0:00:14.7]} 45. Kb3
{[%clk 0:00:09.4]} 45... Qxh2 {[%clk 0:00:14.9]} 46. Rxc5 {[%clk 0:00:09.5]}
46... bxc5 {[%clk 0:00:14.8]} 0-1

[Event "*** Titled Tuesday Blitz"]
[Site "Chess.com"]
[Date "2020.11.10"]
[Round "2"]
[White "zivicd"]
[Black "Sergey85Rodchenkov"]
[Result "0-1"]
[WhiteElo "2249"]
[BlackElo "2457"]
[TimeControl "180+1"]
[EndTime "10:20:55 PST"]
[Termination "Sergey85Rodchenkov won on time"]

1. e4 {[%clk 0:02:28.1]} 1... c5 {[%clk 0:02:58.9]} 2. Nc3 {[%clk 0:02:27]} 2...
e6 {[%clk 0:02:58.4]} 3. g3 {[%clk 0:02:26.6]} 3... d5 {[%clk 0:02:57.5]} 4. d3
{[%clk 0:02:24.7]} 4... Nc6 {[%clk 0:02:56.1]} 5. Bg2 {[%clk 0:02:24.2]} 5... d4
{[%clk 0:02:55.2]} 6. Nce2 {[%clk 0:02:23.6]} 6... e5 {[%clk 0:02:54.9]} 7. f4
{[%clk 0:02:23.7]} 7... Bd6 {[%clk 0:02:53.7]} 8. Nf3 {[%clk 0:02:21.8]} 8...
Nge7 {[%clk 0:02:49.9]} 9. fxe5 {[%clk 0:02:11.9]} 9... Nxe5 {[%clk 0:02:48.9]}
10. Nxe5 {[%clk 0:02:07.3]} 10... Bxe5 {[%clk 0:02:48.7]} 11. Nf4 {[%clk
0:02:07]} 11... Ng6 {[%clk 0:02:45.4]} 12. O-O {[%clk 0:01:42.4]} 12... O-O
{[%clk 0:02:44]} 13. Qh5 {[%clk 0:01:35.3]} 13... Qd6 {[%clk 0:02:40.8]} 14. b3
{[%clk 0:01:12.6]} 14... Bd7 {[%clk 0:02:39.1]} 15. a4 {[%clk 0:01:10.6]} 15...
Rae8 {[%clk 0:02:35.3]} 16. Bd2 {[%clk 0:01:07.5]} 16... b6 {[%clk 0:02:33.8]}
17. Rf2 {[%clk 0:01:04.3]} 17... Ne7 {[%clk 0:02:09.9]} 18. Bh3 {[%clk
0:00:56.8]} 18... g6 {[%clk 0:02:08.7]} 19. Qh4 {[%clk 0:00:52.5]} 19... Bxh3
{[%clk 0:01:33.8]} 20. Nxh3 {[%clk 0:00:44.5]} 20... Bg7 {[%clk 0:01:16.3]} 21.
Bh6 {[%clk 0:00:39.1]} 21... f5 {[%clk 0:01:01.7]} 22. Ng5 {[%clk 0:00:39]}
22... Qf6 {[%clk 0:00:55.3]} 23. Re1 {[%clk 0:00:19.8]} 23... Nc6 {[%clk
0:00:44.8]} 24. Bxg7 {[%clk 0:00:18]} 24... Qxg7 {[%clk 0:00:43.2]} 25. Ref1
{[%clk 0:00:18.2]} 25... h6 {[%clk 0:00:40]} 26. Nh3 {[%clk 0:00:17.8]} 26... g5
{[%clk 0:00:36.1]} 27. Qh5 {[%clk 0:00:16.6]} 27... fxe4 {[%clk 0:00:28]} 28.
Rxf8+ {[%clk 0:00:16.5]} 28... Rxf8 {[%clk 0:00:28.2]} 29. Rxf8+ {[%clk
0:00:16.2]} 29... Kxf8 {[%clk 0:00:28.4]} 30. Qg4 {[%clk 0:00:16.2]} 30... Ne5
{[%clk 0:00:21]} 31. Qf5+ {[%clk 0:00:14]} 31... Kg8 {[%clk 0:00:19.9]} 32. Qxe4
{[%clk 0:00:13.5]} 32... Qf6 {[%clk 0:00:19.7]} 33. Kg2 {[%clk 0:00:13.3]} 33...
Kg7 {[%clk 0:00:17.4]} 34. Qb7+ {[%clk 0:00:12]} 34... Kg6 {[%clk 0:00:17.7]}
35. Qe4+ {[%clk 0:00:12.2]} 35... Qf5 {[%clk 0:00:16.5]} 36. Nf2 {[%clk
0:00:12.3]} 36... g4 {[%clk 0:00:14.3]} 37. h3 {[%clk 0:00:10.6]} 37... h5
{[%clk 0:00:14.3]} 38. hxg4 {[%clk 0:00:10]} 38... hxg4 {[%clk 0:00:14.4]} 39.
Qxf5+ {[%clk 0:00:09.4]} 39... Kxf5 {[%clk 0:00:14.4]} 40. Ne4 {[%clk 0:00:10]}
40... Nf3 {[%clk 0:00:13.6]} 41. Kf2 {[%clk 0:00:09.3]} 41... Ne5 {[%clk
0:00:13.6]} 42. Nd6+ {[%clk 0:00:09.2]} 42... Ke6 {[%clk 0:00:13.8]} 43. Ne4
{[%clk 0:00:07.8]} 43... Nc6 {[%clk 0:00:13.2]} 44. Ke2 {[%clk 0:00:06.5]} 44...
Nb4 {[%clk 0:00:13.1]} 45. Kd2 {[%clk 0:00:06.6]} 45... Nd5 {[%clk 0:00:13.6]}
46. Ke2 {[%clk 0:00:06.2]} 46... Ne3 {[%clk 0:00:13.6]} 47. Kd2 {[%clk
0:00:05.3]} 47... Ke5 {[%clk 0:00:12.9]} 48. Kc1 {[%clk 0:00:04.3]} 48... Nf5
{[%clk 0:00:12.5]} 49. Kd2 {[%clk 0:00:03.9]} 49... Ne3 {[%clk 0:00:11.8]} 50.
Ng5 {[%clk 0:00:02.6]} 50... Kd5 {[%clk 0:00:10.5]} 51. Ne4 {[%clk 0:00:02.1]}
51... a6 {[%clk 0:00:10.2]} 52. Kc1 {[%clk 0:00:02.1]} 52... Nf1 {[%clk
0:00:09.5]} 0-1

[Event "*** Titled Tuesday Blitz"]
[Site "Chess.com"]
[Date "2020.11.10"]
[Round "2"]
[White "SanchezKelvin"]
[Black "oneshot007"]
[Result "1-0"]
[WhiteElo "2441"]
[BlackElo "2229"]
[TimeControl "180+1"]
[EndTime "10:20:55 PST"]
[Termination "SanchezKelvin won by resignation"]

1. e4 {[%clk 0:03:00.9]} 1... c5 {[%clk 0:02:59.1]} 2. Nf3 {[%clk 0:03:01.2]}
2... Nc6 {[%clk 0:02:58.7]} 3. d4 {[%clk 0:03:01.5]} 3... cxd4 {[%clk
0:02:58.8]} 4. Nxd4 {[%clk 0:03:02.4]} 4... Nf6 {[%clk 0:02:59]} 5. Nc3 {[%clk
0:03:02.1]} 5... e5 {[%clk 0:02:59.1]} 6. Ndb5 {[%clk 0:03:01.9]} 6... d6 {[%clk
0:02:59.5]} 7. Bg5 {[%clk 0:03:01.8]} 7... a6 {[%clk 0:02:59.7]} 8. Na3 {[%clk
0:03:00.7]} 8... b5 {[%clk 0:02:59.7]} 9. Nd5 {[%clk 0:03:00.5]} 9... Be7 {[%clk
0:03:00]} 10. Bxf6 {[%clk 0:03:00.9]} 10... Bxf6 {[%clk 0:03:00.9]} 11. c4
{[%clk 0:03:00.8]} 11... b4 {[%clk 0:03:00]} 12. Nc2 {[%clk 0:03:01]} 12... O-O
{[%clk 0:03:00.3]} 13. h4 {[%clk 0:03:00.4]} 13... g6 {[%clk 0:02:46.5]} 14. h5
{[%clk 0:02:58.4]} 14... Bg5 {[%clk 0:02:45.6]} 15. Bd3 {[%clk 0:02:48]} 15...
Qa5 {[%clk 0:02:41.2]} 16. b3 {[%clk 0:02:47.7]} 16... Qc5 {[%clk 0:02:40.6]}
17. Qe2 {[%clk 0:02:41.7]} 17... a5 {[%clk 0:02:38.9]} 18. O-O {[%clk 0:02:32]}
18... Kh8 {[%clk 0:02:22]} 19. g3 {[%clk 0:02:24.2]} 19... a4 {[%clk 0:02:09]}
20. Kg2 {[%clk 0:02:23.1]} 20... a3 {[%clk 0:01:17.3]} 21. f4 {[%clk 0:02:14.7]}
21... exf4 {[%clk 0:01:12.2]} 22. gxf4 {[%clk 0:02:12.7]} 22... Bh6 {[%clk
0:01:12.4]} 23. f5 {[%clk 0:02:05.9]} 23... Bb7 {[%clk 0:00:58]} 24. Rh1 {[%clk
0:01:39.4]} 24... g5 {[%clk 0:00:20.8]} 25. Raf1 {[%clk 0:01:07.9]} 25... Rae8
{[%clk 0:00:19.5]} 26. Qf2 {[%clk 0:01:01.4]} 26... Ne5 {[%clk 0:00:15.6]} 27.
Qe2 {[%clk 0:00:53.7]} 27... Bxd5 {[%clk 0:00:12.5]} 28. exd5 {[%clk 0:00:46]}
28... Nxc4 {[%clk 0:00:09.4]} 29. Qf2 {[%clk 0:00:35.9]} 29... Qxd5+ {[%clk
0:00:08.6]} 30. Qf3 {[%clk 0:00:35.4]} 30... Qxf3+ {[%clk 0:00:08.2]} 31. Rxf3
{[%clk 0:00:34.7]} 31... Ne5 {[%clk 0:00:08.6]} 32. Nxb4 {[%clk 0:00:16.9]}
32... Nxf3 {[%clk 0:00:07.6]} 33. Kxf3 {[%clk 0:00:17.8]} 33... Re5 {[%clk
0:00:05.2]} 34. Rd1 {[%clk 0:00:15.1]} 34... Rfe8 {[%clk 0:00:05.2]} 35. Bc4
{[%clk 0:00:14.8]} 35... Re3+ {[%clk 0:00:05.3]} 36. Kf2 {[%clk 0:00:13.8]}
36... g4 {[%clk 0:00:04.5]} 37. Rxd6 {[%clk 0:00:12.2]} 37... Bf4 {[%clk
0:00:04.7]} 38. Rd7 {[%clk 0:00:10.8]} 38... R8e7 {[%clk 0:00:03.7]} 39. Rd8+
{[%clk 0:00:10.3]} 39... Kg7 {[%clk 0:00:03.9]} 40. Nd5 {[%clk 0:00:09.6]} 40...
Rf3+ {[%clk 0:00:02.4]} 41. Kg2 {[%clk 0:00:09.9]} 41... Kh6 {[%clk 0:00:01]}
42. Nxe7 {[%clk 0:00:09.1]} 42... Kg5 {[%clk 0:00:01.1]} 43. Nd5 {[%clk
0:00:08.6]} 43... Rg3+ {[%clk 0:00:01.3]} 44. Kf2 {[%clk 0:00:08.6]} 44... Be5
{[%clk 0:00:01.9]} 45. Re8 {[%clk 0:00:07.8]} 45... Rf3+ {[%clk 0:00:02.3]} 46.
Kg2 {[%clk 0:00:07.8]} 46... Bg7 {[%clk 0:00:02.3]} 47. f6 {[%clk 0:00:07.4]}
47... Bh6 {[%clk 0:00:02.1]} 48. Re5+ {[%clk 0:00:07.3]} 48... Kh4 {[%clk
0:00:02.3]} 49. Be2 {[%clk 0:00:05]} 49... Rf4 {[%clk 0:00:01.6]} 1-0

[Event "*** Titled Tuesday Blitz"]
[Site "Chess.com"]
[Date "2020.11.10"]
[Round "2"]
[White "Vasily85"]
[Black "Stalri"]
[Result "0-1"]
[WhiteElo "2393"]
[BlackElo "2196"]
[TimeControl "180+1"]
[EndTime "10:20:55 PST"]
[Termination "Stalri won on time"]

1. d4 {[%clk 0:03:00.9]} 1... g6 {[%clk 0:02:59.5]} 2. e4 {[%clk 0:03:00.4]}
2... Bg7 {[%clk 0:02:59.4]} 3. Nf3 {[%clk 0:03:00.8]} 3... d6 {[%clk 0:02:59.7]}
4. Be2 {[%clk 0:03:01.1]} 4... Nd7 {[%clk 0:02:59.8]} 5. O-O {[%clk 0:03:01.5]}
5... e5 {[%clk 0:02:59.4]} 6. Nc3 {[%clk 0:03:01.3]} 6... Ne7 {[%clk 0:02:55.2]}
7. Be3 {[%clk 0:03:00.3]} 7... O-O {[%clk 0:02:52.2]} 8. Qd2 {[%clk 0:02:54.4]}
8... Nc6 {[%clk 0:02:49.5]} 9. Rad1 {[%clk 0:02:47.7]} 9... Re8 {[%clk
0:02:40.5]} 10. Rfe1 {[%clk 0:02:31.1]} 10... a6 {[%clk 0:02:33.3]} 11. a4
{[%clk 0:02:27.8]} 11... exd4 {[%clk 0:02:24.9]} 12. Nxd4 {[%clk 0:02:27]} 12...
Nde5 {[%clk 0:02:12.9]} 13. Nd5 {[%clk 0:02:09.7]} 13... Bd7 {[%clk 0:01:59.7]}
14. h3 {[%clk 0:01:50.9]} 14... Rb8 {[%clk 0:01:45.5]} 15. f4 {[%clk 0:01:30.8]}
15... Nxd4 {[%clk 0:01:40]} 16. Bxd4 {[%clk 0:01:31.7]} 16... Nc6 {[%clk
0:01:27.5]} 17. Bxg7 {[%clk 0:01:32.1]} 17... Kxg7 {[%clk 0:01:27.3]} 18. Bf3
{[%clk 0:01:21.6]} 18... Be6 {[%clk 0:01:25.8]} 19. Qc3+ {[%clk 0:01:12.1]}
19... f6 {[%clk 0:01:21]} 20. Kh2 {[%clk 0:01:04.3]} 20... Bxd5 {[%clk
0:01:17.4]} 21. exd5 {[%clk 0:01:05.2]} 21... Ne7 {[%clk 0:01:09.8]} 22. Re6
{[%clk 0:01:03.3]} 22... Ng8 {[%clk 0:01:07.9]} 23. f5 {[%clk 0:00:51.8]} 23...
Rxe6 {[%clk 0:01:00.8]} 24. fxe6 {[%clk 0:00:52.7]} 24... Qe7 {[%clk 0:00:58.1]}
25. Rd4 {[%clk 0:00:49.7]} 25... Rc8 {[%clk 0:00:54.4]} 26. Rc4 {[%clk
0:00:32.3]} 26... Qd8 {[%clk 0:00:43]} 27. b4 {[%clk 0:00:32.3]} 27... Ne7
{[%clk 0:00:39.4]} 28. b5 {[%clk 0:00:30.3]} 28... axb5 {[%clk 0:00:38.8]} 29.
axb5 {[%clk 0:00:31.2]} 29... g5 {[%clk 0:00:35.1]} 30. h4 {[%clk 0:00:14.7]}
30... h6 {[%clk 0:00:34.5]} 31. Kg1 {[%clk 0:00:11.5]} 31... b6 {[%clk
0:00:29.5]} 32. Ra4 {[%clk 0:00:10.6]} 32... Ng6 {[%clk 0:00:28.7]} 33. h5
{[%clk 0:00:09.7]} 33... Ne5 {[%clk 0:00:28.6]} 34. Be4 {[%clk 0:00:08.8]} 34...
Kf8 {[%clk 0:00:20.6]} 35. Ra7 {[%clk 0:00:08.7]} 35... Ke7 {[%clk 0:00:20.5]}
36. Bf3 {[%clk 0:00:06.7]} 36... Kf8 {[%clk 0:00:20.1]} 37. Qd4 {[%clk
0:00:06.8]} 37... Qe7 {[%clk 0:00:18.7]} 38. Qe4 {[%clk 0:00:06.3]} 38... Qg7
{[%clk 0:00:17.6]} 39. Kh2 {[%clk 0:00:04.1]} 39... Ke8 {[%clk 0:00:16.3]} 40.
Qf5 {[%clk 0:00:04.4]} 40... Kf8 {[%clk 0:00:15.7]} 41. Be4 {[%clk 0:00:04.6]}
41... Ke7 {[%clk 0:00:15.3]} 42. Ra3 {[%clk 0:00:02.8]} 42... Rh8 {[%clk
0:00:13.2]} 43. Qf2 {[%clk 0:00:02]} 43... Rf8 {[%clk 0:00:12.5]} 44. Bf5 {[%clk
0:00:02.5]} 44... Rc8 {[%clk 0:00:11.8]} 45. Kg1 {[%clk 0:00:02.9]} 45... Qf8
{[%clk 0:00:12]} 46. Qe1 {[%clk 0:00:03.3]} 46... Ra8 {[%clk 0:00:11.9]} 47. Qa1
{[%clk 0:00:03.8]} 47... Rxa3 {[%clk 0:00:09.9]} 48. Qxa3 {[%clk 0:00:04.7]}
48... Qe8 {[%clk 0:00:10]} 49. Qa7 {[%clk 0:00:03.9]} 49... Qc8 {[%clk
0:00:06.6]} 50. Kh1 {[%clk 0:00:02.7]} 50... Nc4 {[%clk 0:00:06.4]} 51. g3
{[%clk 0:00:01.5]} 51... Na5 {[%clk 0:00:06.5]} 0-1

[Event "*** Titled Tuesday Blitz"]
[Site "Chess.com"]
[Date "2020.11.10"]
[Round "2"]
[White "lucachess49"]
[Black "pedro_nascimento85"]
[Result "0-1"]
[WhiteElo "2348"]
[BlackElo "2004"]
[TimeControl "180+1"]
[EndTime "10:20:56 PST"]
[Termination "pedro_nascimento85 won on time"]

1. d4 {[%clk 0:03:00.9]} 1... d5 {[%clk 0:02:59.2]} 2. c4 {[%clk 0:03:00.6]}
2... e6 {[%clk 0:02:58]} 3. Nc3 {[%clk 0:03:00.9]} 3... Be7 {[%clk 0:02:57.4]}
4. cxd5 {[%clk 0:02:55.4]} 4... exd5 {[%clk 0:02:55.6]} 5. Bf4 {[%clk
0:02:56.3]} 5... c6 {[%clk 0:02:54.9]} 6. e3 {[%clk 0:02:56.2]} 6... Nf6 {[%clk
0:02:53.4]} 7. Bd3 {[%clk 0:02:56]} 7... O-O {[%clk 0:02:52]} 8. Qc2 {[%clk
0:02:48]} 8... Nbd7 {[%clk 0:02:48.6]} 9. Nf3 {[%clk 0:02:47.8]} 9... Re8 {[%clk
0:02:48]} 10. O-O {[%clk 0:02:43.7]} 10... Nf8 {[%clk 0:02:31.8]} 11. h3 {[%clk
0:02:43.7]} 11... Ng6 {[%clk 0:02:25.2]} 12. Bh2 {[%clk 0:02:24.7]} 12... Bd6
{[%clk 0:02:17.8]} 13. a3 {[%clk 0:02:18.5]} 13... Bxh2+ {[%clk 0:02:16.4]} 14.
Kxh2 {[%clk 0:02:01.3]} 14... Bd7 {[%clk 0:02:15.7]} 15. b4 {[%clk 0:02:00.3]}
15... Rc8 {[%clk 0:02:15]} 16. Rac1 {[%clk 0:01:45.1]} 16... Re7 {[%clk
0:01:43.9]} 17. Qb3 {[%clk 0:00:43.8]} 17... Ne8 {[%clk 0:01:40.2]} 18. b5
{[%clk 0:00:41.9]} 18... Nd6 {[%clk 0:01:38.4]} 19. bxc6 {[%clk 0:00:38.3]}
19... bxc6 {[%clk 0:01:38.2]} 20. Na4 {[%clk 0:00:37.2]} 20... Rb8 {[%clk
0:01:03.3]} 21. Qc2 {[%clk 0:00:34.4]} 21... Nb7 {[%clk 0:00:54.8]} 22. Nc5
{[%clk 0:00:26.7]} 22... Nxc5 {[%clk 0:00:51.9]} 23. Qxc5 {[%clk 0:00:27.6]}
23... Qc7+ {[%clk 0:00:47.9]} 24. g3 {[%clk 0:00:20.2]} 24... Ree8 {[%clk
0:00:46.3]} 25. Rb1 {[%clk 0:00:17.1]} 25... Be6 {[%clk 0:00:40.1]} 26. Bxg6
{[%clk 0:00:16.5]} 26... hxg6 {[%clk 0:00:36.2]} 27. Ne5 {[%clk 0:00:16.8]}
27... Bf5 {[%clk 0:00:28.5]} 28. Rxb8 {[%clk 0:00:16.3]} 28... Rxb8 {[%clk
0:00:25.4]} 29. Nxc6 {[%clk 0:00:16.5]} 29... Rb7 {[%clk 0:00:18.1]} 30. Rc1
{[%clk 0:00:16.6]} 30... Kh7 {[%clk 0:00:16.7]} 31. Nb4 {[%clk 0:00:16.1]} 31...
Qd7 {[%clk 0:00:13.5]} 32. Qxd5 {[%clk 0:00:15.3]} 32... Qxd5 {[%clk 0:00:12.9]}
33. Nxd5 {[%clk 0:00:15.7]} 33... Rb3 {[%clk 0:00:12.6]} 34. Rc3 {[%clk
0:00:12.6]} 34... Rb2 {[%clk 0:00:11.3]} 35. Kg1 {[%clk 0:00:11.3]} 35... Be4
{[%clk 0:00:11.3]} 36. Rc1 {[%clk 0:00:06.4]} 36... Bxd5 {[%clk 0:00:10.7]} 37.
Rd1 {[%clk 0:00:05.5]} 37... Rb3 {[%clk 0:00:07.7]} 38. e4 {[%clk 0:00:04.4]}
38... Be6 {[%clk 0:00:08.1]} 39. d5 {[%clk 0:00:04.5]} 39... Bd7 {[%clk
0:00:08.4]} 40. e5 {[%clk 0:00:04.4]} 40... Rxa3 {[%clk 0:00:08.1]} 41. Rc1
{[%clk 0:00:05.1]} 41... Ra5 {[%clk 0:00:06.8]} 42. d6 {[%clk 0:00:04.3]} 42...
Rxe5 {[%clk 0:00:06]} 43. Rc7 {[%clk 0:00:04.4]} 43... Be6 {[%clk 0:00:06.2]}
44. Rxa7 {[%clk 0:00:03.5]} 44... Rd5 {[%clk 0:00:06.3]} 45. Ra6 {[%clk
0:00:03.3]} 45... g5 {[%clk 0:00:05.1]} 46. g4 {[%clk 0:00:03.2]} 46... Kg6
{[%clk 0:00:05.2]} 47. Kg2 {[%clk 0:00:03.2]} 47... Kf6 {[%clk 0:00:05.6]} 48.
Kf3 {[%clk 0:00:03.2]} 48... Ke5 {[%clk 0:00:06]} 49. h4 {[%clk 0:00:01.6]}
49... Rxd6 {[%clk 0:00:06.1]} 0-1